fUSD/lending_fUSD_20251227
["ID","MTS","AMOUNT","RATE_DAILY","PERIOD"]
[399875901,1766796641287,-150.0,0.00015288,2]
[399875902,1766796641296,-150.00000001,0.00015288,2]
[399875903,1766796641307,-150.00000001,0.00015288,2]
[399875904,1766796641317,-1000.0,0.00015353,2]
[399875905,1766796641327,-2222.26669018,0.00015436,2]
[399875906,1766796641338,-7061.95168617,0.00015436,2]
[399875907,1766796641348,-1500.0,0.00015468,2]
[399875908,1766796641358,-3458.0,0.00015758,2]
[399875909,1766796641369,-612.0,0.00015758,2]
[399875910,1766796641379,-1610.0,0.00015758,2]
[399875911,1766796641388,-1327.0,0.00015758,2]
[399875912,1766796641398,-432.0,0.00015758,2]
[399875913,1766796641408,-1263.0,0.00015758,2]
[399875914,1766796641418,-912.0,0.00015758,2]
[399875915,1766796641428,-1198.0,0.00015758,2]
[399875916,1766796641438,-4808.0,0.00015758,2]
[399875917,1766796641448,-2430.0,0.00015758,2]
[399875918,1766796641457,-150.0,0.00015758,2]
[399875919,1766796641468,-564.0,0.00015758,2]
[399875920,1766796641477,-667.88,0.0001589,2]
[399875921,1766796641487,-169.42,0.00015901,2]
[399875922,1766796641496,-201.72494753,0.00015906,2]
[399875923,1766796641505,-2222.26669018,0.00015924,2]
[399875924,1766796641516,-7061.95168617,0.00015924,2]
[399875925,1766796641525,-151.55934747,0.00015969,2]
[399875926,1766796641535,-500.0,0.00015973,2]
[399875927,1766796641545,-500.89276948,0.00015973,2]
[399875928,1766796641555,-500.0,0.00015973,2]
[399875929,1766796641565,-500.0,0.00015973,2]
[399875930,1766796641575,-534.79304432,0.00015973,2]
[399875931,1766796641584,-500.0,0.00015973,2]
[399875932,1766796641594,-500.0,0.00015973,2]
[399875933,1766796641603,-500.0,0.00015973,2]
[399875934,1766796641613,-500.0,0.00015973,2]
[399875935,1766796641623,-500.0,0.00015973,2]
[399875936,1766796641637,-500.0,0.00015973,2]
[399875937,1766796641647,-500.91892275,0.00015973,2]
[399875938,1766796641657,-500.0,0.00015973,2]
[399875939,1766796641666,-500.0,0.00015973,2]
[399875940,1766796641675,-501.32987729,0.00015973,2]
[399875941,1766796641685,-500.0,0.00015973,2]
[399875942,1766796641695,-500.0,0.00015973,2]
[399875943,1766796641705,-500.0,0.00015973,2]
[399875944,1766796641714,-500.0,0.00015973,2]
[399875945,1766796641725,-500.0,0.00015973,2]
[399875946,1766796641734,-500.0,0.00015973,2]
[399875947,1766796641744,-500.76503002,0.00015973,2]
[399875948,1766796641754,-500.0,0.00015973,2]
[399875949,1766796641763,-500.0,0.00015973,2]
[399875950,1766796641772,-500.0,0.00015973,2]
[399875951,1766796641782,-500.0,0.00015973,2]
[399875952,1766796641792,-500.0,0.00015973,2]
[399875953,1766796641801,-500.0,0.00015973,2]
[399875954,1766796641811,-500.0,0.00015973,2]
[399875955,1766796641820,-500.0,0.00015973,2]
[399875956,1766796641830,-500.0,0.00015973,2]
[399875957,1766796641841,-500.0,0.00015973,2]
[399875958,1766796641850,-500.0,0.00015973,2]
[399875959,1766796641860,-500.0,0.00015973,2]
[399875960,1766796641870,-500.0,0.00015973,2]
[399875961,1766796641880,-500.0,0.00015973,2]
[399875962,1766796641890,-500.0,0.00015973,2]
[399875963,1766796641900,-500.0,0.00015973,2]
[399875964,1766796641910,-500.0,0.00015973,2]
[399875965,1766796641920,-500.0,0.00015973,2]
[399875966,1766796641930,-500.0,0.00015973,2]
[399875967,1766796641940,-643.0,0.00016012,2]
[399875968,1766796641950,-731.69372668,0.00016016,2]
[399875969,1766796641960,-501.02283993,0.00016059,2]
[399875970,1766796641970,-578.20924308,0.00016149,2]
[399875971,1766796641980,-500.0,0.00016149,2]
[399875972,1766796641990,-500.0,0.00016149,2]
[399875973,1766796642000,-500.0,0.00016149,2]
[399875974,1766796642011,-500.0,0.00016149,2]
[399875975,1766796642021,-500.0,0.00016149,2]
[399875976,1766796642031,-500.0,0.00016149,2]
[399875977,1766796642041,-500.0,0.00016149,2]
[399875978,1766796642051,-500.0,0.00016149,2]
[399875979,1766796642060,-500.0,0.00016149,2]
[399875980,1766796642070,-500.0,0.00016149,2]
[399875981,1766796642079,-496.47127164,0.00016149,2]
[399875982,1766796642090,-500.0,0.00016149,2]
[399875983,1766796642099,-500.0,0.00016149,2]
[399875984,1766796642109,-500.0,0.00016149,2]
[399875985,1766796642119,-500.0,0.00016149,2]
[399875986,1766796642129,-454.88526239,0.00016149,2]
[399875987,1766796642138,-500.0,0.00016149,2]
[399875988,1766796642148,-500.0,0.00016149,2]
[399875989,1766796642158,-500.0,0.00016149,2]
[399875990,1766796642167,-500.0,0.00016149,2]
[399875991,1766796642176,-500.0,0.00016149,2]
[399875992,1766796642186,-500.0,0.00016149,2]
[399875993,1766796642196,-500.0,0.00016149,2]
[399875994,1766796642206,-500.0,0.00016149,2]
[399875995,1766796642216,-500.0,0.00016149,2]
[399875996,1766796642225,-500.0,0.00016149,2]
[399875997,1766796642235,-500.0,0.00016149,2]
[399875998,1766796642245,-322.6107,0.00016149,2]
[399875999,1766796642255,-500.0,0.00016149,2]
[399876000,1766796642267,-500.0,0.00016149,2]
[399876001,1766796642277,-500.0,0.00016149,2]
[399876002,1766796642291,-500.0,0.00016149,2]
[399876003,1766796642301,-500.0,0.00016149,2]
[399876004,1766796642311,-500.0,0.00016149,2]
[399876005,1766796642323,-500.0,0.00016149,2]
[399876006,1766796642333,-500.0,0.00016149,2]
[399876007,1766796642343,-500.0,0.00016149,2]
[399876008,1766796642353,-500.0,0.00016149,2]
[399876009,1766796642366,-500.0,0.00016149,2]
[399876010,1766796642381,-500.0,0.00016149,2]
[399876011,1766796642391,-500.0,0.00016149,2]
[399876012,1766796642401,-250.0,0.00016149,2]
[399876013,1766796642411,-250.0,0.00016149,2]
[399876014,1766796642421,-396.27846837,0.00016149,2]
[399876015,1766796642431,-250.0,0.00016149,2]
[399876016,1766796642441,-250.0,0.00016149,2]
[399876017,1766796642451,-250.0,0.00016149,2]
[399876018,1766796642461,-250.0,0.00016149,2]
[399876019,1766796642471,-250.0,0.00016149,2]
[399876020,1766796642481,-250.0,0.00016149,2]
[399876021,1766796642491,-250.0,0.00016149,2]
[399876022,1766796642500,-250.0,0.00016149,2]
[399876023,1766796642510,-250.0,0.00016149,2]
[399876024,1766796642520,-250.0,0.00016149,2]
[399876025,1766796642530,-250.0,0.00016149,2]
[399876026,1766796642540,-250.0,0.00016149,2]
[399876027,1766796642549,-250.0,0.00016149,2]
[399876028,1766796642559,-250.0,0.00016149,2]
[399876029,1766796642569,-250.0,0.00016149,2]
[399876030,1766796642579,-250.0,0.00016149,2]
[399876031,1766796642588,-250.0,0.00016149,2]
[399876032,1766796642598,-261.58626416,0.00016149,2]
[399876033,1766796642608,-250.0,0.00016149,2]
[399876034,1766796642617,-250.0,0.00016149,2]
[399876035,1766796642627,-250.0,0.00016149,2]
[399876036,1766796642638,-250.0,0.00016149,2]
[399876037,1766796642647,-250.0,0.00016149,2]
[399876038,1766796642657,-250.0,0.00016149,2]
[399876039,1766796642666,-250.0,0.00016149,2]
[399876040,1766796642676,-250.0,0.00016149,2]
[399876041,1766796642686,-250.0,0.00016149,2]
[399876042,1766796642695,-250.0,0.00016149,2]
[399876043,1766796642705,-250.0,0.00016149,2]
[399876044,1766796642714,-500.0,0.00016149,2]
[399876045,1766796642724,-250.0,0.00016149,2]
[399876046,1766796642738,-250.0,0.00016149,2]
[399876047,1766796642748,-200.0,0.00016149,2]
[399876048,1766796642758,-207.4,0.00016149,2]
[399876049,1766796642767,-215.0738,0.00016149,2]
[399876050,1766796642777,-223.0315306,0.00016149,2]
[399876051,1766796642786,-231.28369723,0.00016149,2]
[399876052,1766796642797,-239.84119403,0.00016149,2]
[399876053,1766796642807,-248.71531821,0.00016149,2]
[399876054,1766796642817,-257.91778498,0.00016149,2]
[399876055,1766796642827,-267.46074303,0.00016149,2]
[399876056,1766796642838,-377.36930401,0.00016149,2]
[399876057,1766796642848,-297.9094407,0.00016219,2]
[399876058,1766796642857,-150.0,0.00016219,2]
[399876059,1766796642867,-250.0,0.0001623,2]
[399876060,1766796642877,-2216.98994242,0.000163,3]
[399876061,1766796642888,-1000.0,0.0001637,2]
[399876062,1766796642898,-2222.26669018,0.00016412,2]
[399876063,1766796642907,-7061.95168617,0.00016412,2]
[399876064,1766796642917,-150.0,0.00016438,2]
[399876065,1766796642931,-710.7,0.00016438,2]
[399876066,1766796642940,-500.0,0.00016438,2]
[399876067,1766796642951,-500.0,0.00016438,2]
[399876068,1766796642960,-500.0,0.00016438,2]
[399876069,1766796642970,-500.0,0.00016438,2]
[399876070,1766796642980,-250.0,0.00016438,2]
[399876071,1766796642990,-500.0,0.00016438,2]
[399876072,1766796642999,-500.0,0.00016438,2]
[399876073,1766796643009,-500.0,0.00016438,2]
[399876074,1766796643018,-500.0,0.00016438,2]
[399876075,1766796643029,-500.0,0.00016438,2]
[399876077,1766796643039,-500.0,0.00016438,2]
[399876078,1766796643048,-500.0,0.00016438,2]
[399876079,1766796643059,-500.0,0.00016438,2]
[399876081,1766796643068,-500.0,0.00016438,2]
[399876082,1766796643078,-500.0,0.00016438,2]
[399876083,1766796643088,-500.0,0.00016438,2]
[399876084,1766796643098,-500.0,0.00016438,2]
[399876085,1766796643108,-500.0,0.00016438,2]
[399876086,1766796643117,-500.0,0.00016438,2]
[399876087,1766796643130,-319.58203715,0.00016438,2]
[399876088,1766796643140,-500.0,0.00016438,2]
[399876089,1766796643149,-500.0,0.00016438,2]
[399876090,1766796643159,-500.0,0.00016438,2]
[399876091,1766796643169,-500.0,0.00016438,2]
[399876092,1766796643179,-500.0,0.00016438,2]
[399876093,1766796643188,-500.0,0.00016438,2]
[399876094,1766796643198,-500.0,0.00016438,2]
[399876095,1766796643207,-500.0,0.00016438,2]
[399876096,1766796643217,-500.0,0.00016438,2]
[399876097,1766796643227,-500.0,0.00016438,2]
[399876098,1766796643237,-500.0,0.00016438,2]
[399876099,1766796643247,-500.0,0.00016438,2]
[399876100,1766796643256,-500.0,0.00016438,2]
[399876101,1766796643267,-500.0,0.00016438,2]
[399876102,1766796643277,-500.0,0.00016438,2]
[399876103,1766796643291,-164.56,0.0001644,2]
[399876104,1766796643301,-164.56,0.0001644,2]
[399876105,1766796643311,-164.56,0.0001644,2]
[399876106,1766796643321,-164.56,0.0001644,2]
[399876107,1766796643331,-164.56,0.0001644,2]
[399876108,1766796643341,-150.0,0.00016465,2]
[399876109,1766796643351,-203.08372064,0.00016493,2]
[399876110,1766796643363,-501.09853648,0.00016521,2]
[399876111,1766796643374,-299.72437888,0.00016521,2]
[399876112,1766796643384,-501.27464861,0.00016521,2]
[399876113,1766796643394,-501.54516283,0.00016521,2]
[399876114,1766796643405,-500.0,0.00016521,2]
[399876115,1766796643414,-500.0,0.00016521,2]
[399876116,1766796643424,-501.64987831,0.00016521,2]
[399876117,1766796643434,-501.52379786,0.00016521,2]
[399876118,1766796643443,-1000.0,0.00016521,2]
[399876119,1766796643453,-501.47129167,0.00016521,2]
[399876120,1766796643463,-500.0,0.00016521,2]
[399876121,1766796643472,-501.62552641,0.00016521,2]
[399876122,1766796643482,-502.36597635,0.00016521,2]
[399876123,1766796643492,-502.51080525,0.00016521,2]
[399876124,1766796643502,-500.0,0.00016521,2]
[399876125,1766796643519,-1000.0,0.00016521,2]
[399876126,1766796643533,-502.41625795,0.00016521,2]
[399876127,1766796643543,-501.87578424,0.00016521,2]
[399876128,1766796643552,-502.47387917,0.00016521,2]
[399876129,1766796643562,-500.56640206,0.00016521,2]
[399876130,1766796643572,-501.68433486,0.00016521,2]
[399876131,1766796643582,-1000.0,0.00016521,2]
[399876132,1766796643592,-501.13015343,0.00016521,2]
[399876133,1766796643603,-501.59555949,0.00016521,2]
[399876134,1766796643613,-1000.0,0.00016521,2]
[399876135,1766796643623,-500.63339465,0.00016521,2]
[399876136,1766796643632,-1000.0,0.00016521,2]
[399876137,1766796643642,-500.47493987,0.00016521,2]
[399876138,1766796643652,-1000.0,0.00016521,2]
[399876139,1766796643661,-582.06225981,0.00016521,2]
[399876140,1766796643671,-501.55278646,0.00016521,2]
[399876141,1766796643681,-502.12022851,0.00016521,2]
[399876142,1766796643691,-501.11243269,0.00016521,2]
[399876143,1766796643701,-502.60700884,0.00016521,2]
[399876144,1766796643711,-501.50162149,0.00016521,2]
[399876145,1766796643721,-501.45598765,0.00016521,2]
[399876146,1766796643731,-3292.0,0.00016545,2]
[399876147,1766796643740,-653.33262019,0.0001666,2]
[399876148,1766796643750,-164.83,0.00016712,2]
[399876149,1766796643760,-203.59064575,0.00016824,2]
[399876150,1766796643770,-1113.30940197,0.0001683,2]
[399876151,1766796643779,-200.0,0.00016863,2]
[399876152,1766796643789,-200.0,0.00016864,2]
[399876153,1766796643799,-236.33089102,0.0001687,2]
[399876154,1766796643809,-2222.26669018,0.000169,2]
[399876155,1766796643819,-7061.95168617,0.000169,2]
[399876156,1766796643828,-398.40831122,0.000169,2]
[399876158,1766796643839,-194.15320872,0.000169,2]
[399876159,1766796643848,-228.55347716,0.000169,2]
[399876160,1766796643858,-3410.0,0.000169,2]
[399876161,1766796643872,-164.56,0.0001696,2]
[399876162,1766796643882,-500.0,0.00016969,2]
[399876163,1766796643892,-1000.0,0.0001697,2]
[399876164,1766796643902,-1000.0,0.0001697,2]
[399876165,1766796643912,-1000.0,0.0001697,2]
[399876166,1766796643921,-500.0,0.0001697,2]
[399876167,1766796643932,-1000.0,0.0001697,2]
[399876168,1766796643942,-500.0,0.0001697,2]
[399876169,1766796643952,-1000.0,0.0001697,2]
[399876170,1766796643962,-1000.0,0.0001697,2]
[399876171,1766796643973,-500.0,0.0001697,2]
[399876172,1766796643983,-802.46796525,0.0001697,2]
[399876173,1766796643994,-79786.6946179,0.0001697,2]
[399876174,1766796644004,-19502.3708851,0.0001697,2]
[399876175,1766796644014,-150.12296232,0.00016973,2]
[399876176,1766796644024,-163.53521313,0.00016973,2]
[399876177,1766796644034,-150.0,0.00016973,2]
[399876178,1766796644044,-150.0,0.00016973,2]
[399876179,1766796644054,-150.0,0.00016986,2]
[399876180,1766796644064,-150.00000001,0.00016986,2]
[399876181,1766796644074,-150.00000045,0.00016986,2]
[399876182,1766796644083,-164.56,0.0001699,2]
[399876183,1766796644094,-164.56,0.0001699,2]
[399876184,1766796644104,-164.56,0.0001699,2]
[399876185,1766796644115,-300.0,0.00016999,2]
[399876186,1766796644125,-300.0,0.00016999,2]
[399876187,1766796644135,-300.0,0.00016999,2]
[399876188,1766796644146,-500.0,0.00016999,2]
[399876189,1766796644156,-500.0,0.00016999,2]
[399876190,1766796644166,-500.0,0.00016999,2]
[399876191,1766796644176,-500.0,0.00016999,2]
[399876192,1766796644186,-500.0,0.00016999,2]
[399876193,1766796644196,-1251018.2326145,0.00017,2]
[399876194,1766796644807,-150.0,0.00015758,2]
[399876195,1766796644816,-30208.26955966,0.00017,2]
[399876196,1766796644827,-881.0,0.00017,2]
[399876197,1766796644860,-43528.61662043,0.00017,2]
[399876201,1766796644915,-232.82804217,0.00012986,2]
[399876203,1766796644926,-6354.94799083,0.00017,2]
[399876212,1766796646208,-500.0,0.00017,2]
[399876213,1766796646263,-5103.0,0.00017,2]
[399876214,1766796646318,-48626.4191349,0.00017,2]
[399876217,1766796708309,220.55,7.824e-05,2]
[399876218,1766796708507,220.55,8.235e-05,2]
[399876219,1766796708751,220.55,8.647e-05,2]
[399876220,1766796708953,-167.46515835,0.00012333,2]
[399876221,1766796709001,220.55,9.059e-05,2]
[399876222,1766796709249,220.55,9.471e-05,2]
[399876223,1766796709454,220.55,9.883e-05,2]
[399876224,1766796709719,220.55,0.00010294,2]
[399876225,1766796709933,220.55,0.00010706,2]
[399876226,1766796710302,220.55,0.00011118,2]
[399876227,1766796710346,220.55,0.0001153,2]
[399876228,1766796710566,220.55,0.00011942,2]
[399876229,1766796711933,-165.52982588,0.00012333,2]
[399876230,1766796773103,-195.64267054,0.00012183,2]
[399876232,1766796818062,-306.7753486,0.00012086,2]
[399876234,1766797223684,-182.62606548,0.00012086,2]
[399876235,1766797227520,-217.94258592,0.00012086,2]
[399876236,1766797227543,-7.81359583,0.00012086,2]
[399876237,1766797333706,10000.0,0.00030137,120]
[399876238,1766797337017,50000.0,0.00030137,120]
[399876239,1766797341598,10000.0,0.00030137,120]
[399876240,1766797348014,10000.0,0.00030137,120]
[399876241,1766797353972,10000.0,0.00030137,120]
[399876242,1766797360699,10000.0,0.00030137,120]
[399876243,1766797361780,50000.0,0.00030137,120]
[399876244,1766797367620,10000.0,0.00030137,120]
[399876245,1766797374016,10000.0,0.00030137,120]
[399876246,1766797380183,10000.0,0.00030137,120]
[399876247,1766797387936,10000.0,0.00030137,120]
[399876248,1766797393293,10000.0,0.00030137,120]
[399876249,1766797401550,1251.5,0.00030137,120]
[399876264,1766797779247,-241.18640417,0.00012086,2]
[399876265,1766797779271,-164.23543657,0.00012098,2]
[399876266,1766797780832,-85.76456343,0.00012098,2]
[399876267,1766797780857,-157.55392736,0.00012133,2]
[399876268,1766797780885,-123.74305032,0.00012133,2]
[399876272,1766797832276,-300.0,0.00012132,2]
[399876273,1766797832289,-1200.0,0.00012132,2]
[399876274,1766797832299,-300.0,0.00012132,2]
[399876275,1766797832310,-5255.01999984,0.00012133,2]
[399876276,1766797832331,-405.57120192,0.00012133,2]
[399876277,1766797832386,-1020.04874666,0.00012133,2]
[399876278,1766797832399,-369.39188292,0.00012133,2]
[399876279,1766797832411,-397.84647269,0.00012133,2]
[399876280,1766797832423,-1243.74745066,0.00012133,2]
[399876281,1766797832433,-225.04495675,0.00012133,2]
[399876282,1766797832443,-249.0,0.00012133,2]
[399876283,1766797832453,-462.33344159,0.00012133,2]
[399876284,1766797832479,-2374.09727525,0.00012133,2]
[399876285,1766797832488,-383.4143742,0.00012157,2]
[399876286,1766797832498,-137.35232946,0.00012183,2]
[399876287,1766797832508,-150.0,0.00012232,2]
[399876288,1766797832518,-79570.90215039,0.00012233,2]
[399876289,1766797832530,-601.69958808,0.00012233,2]
[399876301,1766797839371,-500.0,0.00012232,2]
[399876303,1766797839382,-500.0,0.00012232,2]
[399876305,1766797839392,-269.74232105,0.00012232,2]
[399876307,1766797839401,-410.03346709,0.00012232,2]
[399876309,1766797839416,-581.8890823,0.00012232,2]
[399876311,1766797839426,-500.0,0.00012232,2]
[399876313,1766797839436,-500.0,0.00012232,2]
[399876315,1766797839446,-500.0,0.00012232,2]
[399876317,1766797839456,-500.0,0.00012232,2]
[399876319,1766797839466,-500.0,0.00012232,2]
[399876321,1766797839476,-500.0,0.00012232,2]
[399876323,1766797839486,-500.0,0.00012232,2]
[399876326,1766797839496,-500.0,0.00012232,2]
[399876328,1766797839505,-500.0,0.00012232,2]
[399876330,1766797839515,-486.1315222,0.00012232,2]
[399876332,1766797839527,-500.0,0.00012232,2]
[399876334,1766797839546,-500.0,0.00012232,2]
[399876336,1766797839563,-500.0,0.00012232,2]
[399876337,1766797839573,-3752.20360736,0.00012233,2]
[399876338,1766797839585,-4324.87675159,0.00012233,2]
[399876339,1766797839596,-8713.69516655,0.00012233,2]
[399876340,1766797839608,-8947.21879473,0.00012233,2]
[399876341,1766797839619,-8943.78386462,0.00012233,2]
[399876342,1766797839630,-9077.54866152,0.00012233,2]
[399876343,1766797839642,-8943.84023489,0.00012233,2]
[399876344,1766797839654,-343.42901379,0.00012233,2]
[399876345,1766797839673,-474.60097449,0.00012233,2]
[399876346,1766797839685,-866306.20119199,0.00012233,2]
[399876347,1766797839699,-4841.6522,0.00012233,2]
[399876348,1766797839711,-1629.6481,0.00012233,2]
[399876349,1766797839724,-226.45427209,0.00012233,2]
[399876350,1766797839737,-1200.0,0.00012252,2]
[399876351,1766797839750,-201.72494754,0.00012253,2]
[399876352,1766797839763,-200.0,0.00012275,2]
[399876353,1766797839775,-565.876,0.00012332,2]
[399876354,1766797839793,-289.4,0.00012342,2]
[399876355,1766797839804,-220.55,0.00012353,2]
[399876356,1766797839815,-8815.36880501,0.00012663,2]
[399876357,1766797839825,-2836.43071684,0.00012663,2]
[399876358,1766797839836,-220.55,0.00012765,2]
[399876359,1766797839848,-225.04495674,0.00012957,2]
[399876360,1766797839860,-166.66,0.00013123,2]
[399876361,1766797839871,-220.55,0.00013177,2]
[399876362,1766797839883,-8815.36880501,0.00013192,2]
[399876363,1766797839895,-2836.43071684,0.00013192,2]
[399876364,1766797839907,-303.78799199,0.00013293,2]
[399876365,1766797839919,-300.0,0.00013295,2]
[399876366,1766797839931,-250.0,0.00013295,2]
[399876367,1766797839943,-500.0,0.00013316,2]
[399876368,1766797839955,-420.0,0.00013316,2]
[399876369,1766797839968,-255.0,0.0001332,2]
[399876370,1766797839979,-1680.0,0.00013345,2]
[399876371,1766797839991,-250.0,0.00013345,2]
[399876372,1766797840003,-166.66,0.00013399,2]
[399876373,1766797840013,-220.55,0.00013589,2]
[399876374,1766797840024,-500.0,0.0001359,2]
[399876375,1766797840034,-166.66,0.00013675,2]
[399876376,1766797840046,-500.0,0.00013698,2]
[399876377,1766797840058,-500.0,0.00013698,2]
[399876378,1766797840069,-500.0,0.00013698,2]
[399876379,1766797840080,-9999.99,0.00013699,2]
[399876380,1766797840095,-347.05,0.00013699,2]
[399876381,1766797840107,-9999.99,0.00013699,2]
[399876382,1766797840119,-14850.43,0.00013699,2]
[399876383,1766797840135,-294.76,0.00013699,2]
[399876384,1766797840148,-5278.37,0.00013699,2]
[399876385,1766797840160,-150.99,0.00013699,2]
[399876386,1766797840172,-299.99,0.00013699,2]
[399876387,1766797840184,-500.0,0.00013699,2]
[399876388,1766797840196,-371.64082973,0.00013699,2]
[399876389,1766797840207,-8815.36880501,0.00013722,2]
[399876390,1766797840219,-2836.43071684,0.00013722,2]
[399876391,1766797840231,-1559.5,0.00013736,2]
[399876392,1766797840243,-225.04495674,0.00013781,2]
[399876393,1766797840255,-1653.39,0.00013798,2]
[399876394,1766797840266,-500.0,0.00013864,2]
[399876395,1766797840277,-166.66,0.00013952,2]
[399876396,1766797840289,-220.55,0.00014,2]
[399876397,1766797840300,-166.67,0.0001402,2]
[399876398,1766797840310,-594.89493419,0.00014138,2]
[399876399,1766797840323,-1475.4671258,0.0001417,2]
[399876400,1766797840335,-166.66,0.00014228,2]
[399876401,1766797840347,-8815.36880501,0.00014252,2]
[399876402,1766797840358,-2836.43071684,0.00014252,2]
[399876403,1766797840370,-1000.0,0.0001437,2]
[399876404,1766797840381,-500.0,0.00014373,2]
[399876405,1766797840393,-500.0,0.00014373,2]
[399876406,1766797840406,-339.47657605,0.00014373,2]
[399876407,1766797840420,-276.52041223,0.00014373,2]
[399876408,1766797840432,-500.0,0.00014373,2]
[399876409,1766797840443,-220.55,0.00014412,2]
[399876410,1766797840455,-166.66,0.00014504,2]
[399876411,1766797840467,-433.0,0.00014507,2]
[399876412,1766797840482,-157.55392734,0.00014517,2]
[399876413,1766797840494,-225.04495674,0.00014605,2]
[399876414,1766797840507,-462.0,0.00014617,2]
[399876415,1766797840525,-500.0,0.00014627,2]
[399876416,1766797840538,-2351.0,0.0001468,2]
[399876417,1766797840551,-211.25982715,0.00014687,2]
[399876418,1766797840565,-167.0,0.00014706,2]
[399876419,1766797840578,-167.0,0.00014706,2]
[399876420,1766797840591,-168.05031571,0.00014706,2]
[399876421,1766797840604,-8815.36880501,0.00014781,2]
[399876422,1766797840616,-2836.43071684,0.00014781,2]
[399876423,1766797840627,-220.55,0.00014824,2]
[399876424,1766797840638,-1000.0,0.00014921,2]
[399876425,1766797840650,-502.55443721,0.00014921,2]
[399876426,1766797840664,-500.0,0.00014921,2]
[399876427,1766797840676,-1000.0,0.0001497,2]
[399876428,1766797840687,-220.55,0.00015236,2]
[399876429,1766797840699,-3411.0,0.00015262,2]
[399876430,1766797840710,-230.12358953,0.00015288,2]
[399876431,1766797840721,-150.0,0.00015288,2]
[399876432,1766797840733,-150.0,0.00015288,2]
[399876433,1766797840746,-150.0,0.00015288,2]
[399876434,1766797840760,-150.00000001,0.00015288,2]
[399876435,1766797840771,-150.00000001,0.00015288,2]
[399876436,1766797840782,-150.00000001,0.00015288,2]
[399876437,1766797840793,-8815.36880501,0.00015311,2]
[399876438,1766797840803,-2836.43071684,0.00015311,2]
[399876439,1766797840813,-225.04495674,0.00015428,2]
[399876440,1766797840823,-1559.5,0.00015453,2]
[399876441,1766797840834,-1500.0,0.00015468,2]
[399876442,1766797840844,-1610.0,0.00015523,2]
[399876443,1766797840859,-1327.0,0.00015523,2]
[399876444,1766797840871,-1263.0,0.00015523,2]
[399876445,1766797840882,-432.0,0.00015523,2]
[399876446,1766797840893,-912.0,0.00015523,2]
[399876447,1766797840908,-1198.0,0.00015523,2]
[399876448,1766797840920,-2430.0,0.00015527,2]
[399876449,1766797840932,-4808.0,0.00015527,2]
[399876450,1766797840944,-6535.0,0.00015527,2]
[399876451,1766797840955,-220.55,0.00015648,2]
[399876452,1766797840966,-150.0,0.00015758,2]
[399876453,1766797840977,-150.0,0.00015758,2]
[399876454,1766797840988,-150.0,0.00015758,2]
[399876455,1766797840999,-150.0,0.00015758,2]
[399876456,1766797841010,-150.0,0.00015758,2]
[399876457,1766797841022,-150.0,0.00015758,2]
[399876458,1766797841034,-150.0,0.00015758,2]
[399876459,1766797841046,-150.0,0.00015758,2]
[399876460,1766797841057,-150.0,0.00015758,2]
[399876461,1766797841067,-150.0,0.00015758,2]
[399876462,1766797841079,-150.0,0.00015758,2]
[399876463,1766797841093,-150.0,0.00015758,2]
[399876464,1766797841105,-3458.0,0.00015758,2]
[399876465,1766797841116,-612.0,0.00015758,2]